Cogmind - Beta 11.1 @@@ ROGUE MODE // 2022.08.02 @ 15:27:50 Player: HeartGrenade Result: Destroyed by G-73 Enforcer with Heavy Laser Performance ------------- Evolutions (8) 4000 Regions Visited (29) 5800 Robots Destroyed (403) 2015 Value Destroyed (18550) 18550 Prototype IDs (62) 1240 Alien Tech Used (1) 200 Bonus (10052) 10052 TOTAL SCORE: 41857 Bonus ------- High Alert Combat Kills 2075 Follower Combat Kills 2338 Network Hubs Disabled 200 Met Data Miner 300 Met Imprinter 300 Met Zhirov 300 Met Warlord at Base 500 MAIN.C Attacked Warlord 500 Built Enhanced Grunts 300 A7 Reached Mainframe 300 Met R17 at Cetus 500 Read Decrypted Archives 300 Met R17 at Research 2000 Scanned by Researcher 500 Friendly Fire -361 Cogmind --------- Core Integrity 0/1450 Matter 289/300 Energy 99/100 System Corruption 38% Temperature Cool (0) Movement Core (50) Location -2/Testing Parts ------- > --- POWER (3) -------- (None) > --- PROPULSION (6) --- (None) > --- UTILITY (11) ----- Advanced Signal Interpreter Advanced System Shield > --- WEAPON (3) ------- (None) > --- INVENTORY (5) ---- Micro Antimatter Reactor Quantum Capacitor Core Cannon Peak State ------------ > --- POWER ------------ Light Neutrino Core Antimatter Reactor Quantum Reactor > --- PROPULSION ------- Armored Heavy Treads Advanced Heavy Treads Biometal Heavy Treads > --- UTILITY ---------- Advanced Heat Sink Advanced Cooling System Huge Storage Unit Advanced Signal Interpreter Advanced Targeting Computer Improved Transmission Jammer Centrium Medium Armor Plating Advanced Thermal Shield Experimental Shield Generator System Shield Advanced System Shield > --- WEAPON ----------- Advanced Variable Charge Gun Quantum Rifle Cooled Plasma Cannon > --- INVENTORY -------- Light Antimatter Reactor Particle Reactor High-density Centrium Leg 2N-1CE's Frost Array Energy Well Improved Matter Compressor Advanced Sensor Array Centrium Medium Armor Plating Authchip [Propulsion] High-powered Transdimensional Reconstructor Subatomic Replicator Enhanced Quantum Rifle Enhanced Quantum Rifle Compact HERF Cannon Nova Cannon Enhanced Nova Cannon Enhanced Nova Cannon Enhanced Nova Cannon Core Cannon Linear Accelerator Neutron Missile Launcher RU-N14's Throwing Claymores v3 RU-N14's Throwing Claymores v3 CR-A16's Behemoth Slayer [Rating: 177] Favorites ----------- Power Antimatter Reactor Engine Improved Deuterium Engine Power Core Fission Core Reactor Antimatter Reactor Propulsion Light Treads Treads Light Treads Leg High-density Centrium Leg Wheel Armored Huge Wheel Hover Unit Aerolev Unit Flight Unit Improved Flight Unit Utility Huge Storage Unit Device Advanced Sensor Array Storage Huge Storage Unit Processor Improved Targeting Computer Hackware Hacking Suite Protection Centrium Medium Armor Plating Weapon Cooled Plasma Cannon Energy Gun Advanced Beam Rifle Energy Cannon Cooled Plasma Cannon Ballistic Gun Improved Assault Rifle Launcher Scatter Rocket Array Special Weapon Plasma Cutter Impact Weapon Flail Slashing Weapon Chainsword Piercing Weapon CR-A16's Behemoth Slayer Build | -11 -10 -9 -9 -8 -8 -7 -7 -7 -7 -6 -6 -6 -6 -6 -5 -5 -5 -5 -5 -4 -4 -4 -4 -4 -4 -3 -3 -2 -2 ------- Run | Scr Mat Mat Min Mat Sto Fac Low Low Zio Pro Fac Low Low Dat Pro Fac Upp Upp War Pro Fac Ext Cet Arc Hub Res Qua Res Tes Slots Evolved 16 | . . 2 . 2 . 2 . . . . 2 . . . . 2 . . . . 2 . . . . 2 . 2 . Power 2 | . . . . . . . . . . . . . . . . 1 . . . . . . . . . . . 1 . Propulsion 4 | . . . . 2 . 1 . . . . . . . . . 1 . . . . . . . . . . . . . Utility 9 | . . 2 . . . 1 . . . . 2 . . . . . . . . . 1 . . . . 2 . 1 . Weapon 1 | . . . . . . . . . . . . . . . . . . . . . 1 . . . . . . . . Parts Attached 490 | 6 3 23 6 36 12 24 7 2 3 14 61 14 7 1 11 37 22 6 6 7 30 12 7 2 6 18 25 16 66 Power 40 | 1 . 2 1 2 2 2 1 . . . 1 . . . 1 7 4 1 1 . . 2 1 1 . 2 1 2 5 Engine 22 | 1 . 2 1 2 2 2 1 . . . . . . . . 5 4 1 . . . . . 1 . . . . . Core 7 | . . . . . . . . . . . 1 . . . 1 2 . . . . . 2 . . . . . . 1 Reactor 11 | . . . . . . . . . . . . . . . . . . . 1 . . . 1 . . 2 1 2 4 Propulsion 82 | 2 . 3 1 17 3 7 . . 1 2 7 4 2 . 1 5 1 . 1 1 7 2 2 . . 3 2 1 7 Treads 67 | 2 . 3 1 14 3 5 . . 1 1 6 4 1 . 1 5 1 . 1 1 5 2 2 . . 3 2 1 2 Leg 5 | . . . . . . . . . . . . . 1 . . . . . . . 2 . . . . . . . 2 Wheel 7 | . . . . . . 2 . . . 1 1 . . . . . . . . . . . . . . . . . 3 Hover 2 | . . . . 2 . . . . . . . . . . . . . . . . . . . . . . . . . Flight 1 | . . . . 1 . . . . . . . . . . . . . . . . . . . . . . . . . Utility 200 | 1 2 7 . 9 1 8 3 . . 6 35 3 2 . 4 14 9 3 4 2 15 3 2 1 4 9 12 7 34 Device 113 | . . 2 . 3 . 5 2 . . 3 24 1 1 . 3 7 6 2 2 1 9 1 1 . 3 4 8 . 25 Storage 12 | 1 1 . . 2 . . . . . . . . . . . . . . 1 . 1 . . . . . 1 2 3 Processor 12 | . . 2 . . . 2 . . . . 3 . . . . 1 . . 1 . 1 . . . . 1 1 . . Hackware 9 | . . . . . . . . . . . 1 . . . . 2 1 . . 1 . . . 1 . 2 . 1 . Protection 54 | . 1 3 . 4 1 1 1 . . 3 7 2 1 . 1 4 2 1 . . 4 2 1 . 1 2 2 4 6 Artifact . | . . . . . . . . . . . . . . . . . . . . . . . . . . . . . . Weapon 168 | 2 1 11 4 8 6 7 3 2 2 6 18 7 3 1 5 11 8 2 . 4 8 5 2 . 2 4 10 6 20 Energy Gun 64 | 1 . 4 2 6 4 3 2 1 . 3 9 1 . . 1 1 1 . . . 6 2 2 . 1 2 3 3 6 Energy Cannon 39 | . . . . . . . . . . . 2 3 2 1 1 6 2 . . 3 2 2 . . . 1 3 2 9 Ballistic Gun 9 | 1 1 4 . 2 1 . . . . . . . . . . . . . . . . . . . . . . . . Ballistic Cannon . | . . . . . . . . . . . . . . . . . . . . . . . . . . . . . . Launcher 29 | . . 1 . . 1 1 1 1 . 1 4 3 1 . 2 4 3 1 . . . . . . . . 1 1 3 Special Weapon 8 | . . 1 2 . . . . . . . . . . . . . . . . . . 1 . . . 1 1 . 2 Impact Weapon 1 | . . 1 . . . . . . . . . . . . . . . . . . . . . . . . . . . Slashing Weapon 4 | . . . . . . 3 . . 1 . . . . . . . . . . . . . . . . . . . . Piercing Weapon 14 | . . . . . . . . . 1 2 3 . . . 1 . 2 1 . 1 . . . . 1 . 2 . . Special Melee Weapon . | . . . . . . . . . . . . . . . . . . . . . . . . . . . . . . Unidentified Prototypes 35 | . . 1 . 5 2 . . . . . 4 . . . . 2 . . 4 . 1 1 2 . . . 2 2 9 Corrupted Parts 1 | . . . . . . . . . . . . . . . 1 . . . . . . . . . . . . . . System Corruption 1 | . . . . . . . . . . . . . . . 1 . . . . . . . . . . . . . . Parts Lost 98 | . . 6 1 9 1 2 . . . 1 13 4 . . 1 12 3 . . . 3 1 1 . . 1 3 . 36 Power 19 | . . 1 . . 1 1 . . . . 1 . . . 1 5 1 . . . . . . . . . 1 . 7 Propulsion 25 | . . 1 . 4 . 1 . . . 1 4 2 . . . 1 . . . . 2 . 1 . . . . . 8 Utility 35 | . . 3 1 3 . . . . . . 7 1 . . . 5 . . . . 1 . . . . . 2 . 12 Weapon 19 | . . 1 . 2 . . . . . . 1 1 . . . 1 2 . . . . 1 . . . 1 . . 9 Highest Loss Streak 17 | . . 3 1 3 1 2 . . . 1 3 3 . . 1 4 2 . . . 3 1 1 . . 1 2 . 17 To Critical Strikes 1 | . . . . . . . . . . . . . . . . . . . . . . . 1 . . . . . . Average Slot Usage (%) 87 | . 99 99 96 94 99 87 84 84 84 82 97 89 95 87 98 79 75 82 78 76 79 82 84 83 84 84 77 79 74 Engine 3 | . 14 11 11 9 9 6 7 7 7 7 . . . . . 2 6 11 4 . . . . 4 5 1 . . . Core 1 | . . . . . . . . . . . 5 6 6 6 5 5 . . . . . . 2 . . . . . . Reactor 2 | . . . . . . . . . . . . . . . . . . . 2 5 5 4 4 5 5 6 8 12 9 Treads 20 | . 28 21 21 32 35 18 7 7 7 6 29 25 29 33 33 20 16 17 17 17 18 20 19 15 15 13 14 13 7 Wheel 1 | . . . . . . 7 15 15 15 14 1 . . . . . . . . . . . . . . . . . 2 Device 9 | . . 11 11 9 9 6 6 7 7 5 10 6 6 6 6 4 4 10 10 11 13 13 10 10 13 14 11 13 13 Storage 6 | . 14 11 11 9 9 7 7 7 7 7 6 6 6 6 6 5 5 5 5 5 5 5 5 5 5 4 2 4 5 Processor 12 | . . 11 11 9 9 15 23 23 23 23 19 20 20 20 20 12 11 11 11 11 10 10 10 10 10 9 8 8 7 Hackware 4 | . . . . . . . . . . . 1 6 6 6 6 6 11 11 11 11 10 10 10 10 10 9 7 7 7 Protection 5 | . 13 10 7 7 9 6 . . . 1 6 6 6 6 5 6 4 . . . 1 1 5 5 1 8 6 6 4 Energy Gun 7 | . 14 11 6 10 17 13 11 14 8 7 8 1 . . . 2 2 . . . 6 13 15 15 13 9 9 8 4 Energy Cannon 3 | . . . . . . . . . . . 2 8 7 1 6 7 5 5 5 9 6 . . . . 3 3 3 5 Ballistic Gun 1 | . 14 8 8 7 . . . . . . . . . . . . . . . . . . . . . . . . . Naked Turns . | . . . . . . . . . . . . . . . . . . . . . . . . . . . . . . Heaviest Build 187 | 13 31 42 45 97 106 104 101 100 96 104 117 111 117 117 117 158 120 110 130 136 144 141 143 140 140 160 161 187 177 Greatest Support 240 | 40 40 40 40 82 82 102 56 56 56 56 110 88 108 108 118 240 160 160 230 230 220 215 240 240 240 240 210 205 215 Greatest Overweight (x) 15 | . . 1 1 1 1 3 1 1 1 3 8 2 1 1 1 1 1 . . . . . . . . . . . 15 Average Overweight (x) . | . . . . . 1 2 1 1 1 1 . 1 1 . . . . . . . . . . . . . . . 1 Largest Inventory Capacity 25 | 8 15 15 15 25 25 25 25 25 25 25 25 25 25 25 25 25 25 25 25 25 25 25 25 25 25 25 25 25 25 Average Capacity 22 | 6 14 15 15 15 25 25 25 25 25 25 25 25 25 25 25 25 25 25 25 25 25 25 25 25 25 25 13 22 24 Most Carried 25 | 4 15 15 15 19 25 25 25 25 25 25 25 24 22 24 25 25 25 25 25 25 25 25 25 25 25 25 25 25 25 Average Carried 21 | 2 8 14 14 14 23 24 25 25 24 25 24 19 20 23 23 24 23 25 24 24 24 24 24 25 25 24 12 21 22 Final Capacity 25 | 8 15 15 15 25 25 25 25 25 25 25 25 25 25 25 25 25 25 25 25 25 25 25 25 25 25 25 15 25 5 Final Carried 25 | 2 15 15 15 19 25 25 25 25 25 25 25 19 22 23 25 25 25 25 25 25 25 25 25 25 25 25 15 25 5 Class Distribution -------------------- 48% | Mutant 13% | Scavenger-Mutant 13% | Hacker-Mutant 7% | Scavenger-Tank 5% | Hacker-Skirmisher Dominant Class ---------------- Mutant | -10/Materials Mutant | -9/Materials Mutant | -9/Mines Scavenger-Mutant | -8/Materials Mutant | -8/Storage Mutant | -7/Factory Mutant | -7/Lower Caves Mutant | -7/Lower Caves Mutant | -7/Zion Mutant | -6/Proximity Caves Mutant | -6/Factory Mutant | -6/Lower Caves Mutant | -6/Lower Caves Mutant | -6/Data Miner Mutant | -5/Proximity Caves Mutant | -5/Factory Hacker-Mutant | -5/Upper Caves Hacker-Mutant | -5/Upper Caves Hacker-Mutant | -5/Warlord Scavenger-Mutant | -4/Proximity Caves Scavenger-Mutant | -4/Factory Hacker-Skirmisher | -4/Extension Commander-Tank | -4/Cetus Scavenger-Tank | -4/Archives Scavenger-Mutant | -4/Hub_04(d) Scavenger-Tank | -3/Research Hacker-Skirmisher | -3/Quarantine Generator-Skirmisher | -2/Research Scavenger-Mutant | -2/Testing Resources | -11 -10 -9 -9 -8 -8 -7 -7 -7 -7 -6 -6 -6 -6 -6 -5 -5 -5 -5 -5 -4 -4 -4 -4 -4 -4 -3 -3 -2 -2 ----------- Run | Scr Mat Mat Min Mat Sto Fac Low Low Zio Pro Fac Low Low Dat Pro Fac Upp Upp War Pro Fac Ext Cet Arc Hub Res Qua Res Tes Matter Collected 8108 | 181 195 489 131 566 170 190 135 44 30 155 666 200 176 . 178 760 320 54 438 332 285 214 80 20 50 209 381 565 894 Remotely . | . . . . . . . . . . . . . . . . . . . . . . . . . . . . . . Salvage Created 16992 | . 535 1173 151 1504 920 459 162 59 . 198 1917 288 302 . 263 1960 731 109 . 308 614 465 128 36 81 296 1895 353 2085 Parts 791 | . 27 68 11 76 43 14 6 7 . 18 70 6 10 . 17 114 26 1 . 6 18 18 5 5 4 13 108 10 90 Haulers Intercepted 18 | . . 5 . 5 5 . . . . . . . . . . 1 . . . . . . . . . . 1 1 . Recyclers Shooed 5 | . . 1 . 1 . . . . . . 2 . . . . 1 . . . . . . . . . . . . . Parts Field Recycled . | . . . . . . . . . . . . . . . . . . . . . . . . . . . . . . Retrieved Matter . | . . . . . . . . . . . . . . . . . . . . . . . . . . . . . . Parts Self-Destructed 103 | . . . . . . . 7 5 1 13 . 19 9 . 20 . 18 . . 11 . . . . . . . . . Prevented 3 | . . . . . . . 2 . . . . 1 . . . . . . . . . . . . . . . . . Kills | -11 -10 -9 -9 -8 -8 -7 -7 -7 -7 -6 -6 -6 -6 -6 -5 -5 -5 -5 -5 -4 -4 -4 -4 -4 -4 -3 -3 -2 -2 ------- Run | Scr Mat Mat Min Mat Sto Fac Low Low Zio Pro Fac Low Low Dat Pro Fac Upp Upp War Pro Fac Ext Cet Arc Hub Res Qua Res Tes Combat Hostiles Destroyed 308 | . 11 25 2 25 14 11 5 4 . 6 32 7 6 . 13 38 13 5 . 4 8 7 2 1 1 6 25 4 33 Guns 126 | . 11 20 2 23 10 7 3 1 . 2 16 . . . . 1 . . . . 1 4 2 1 1 2 13 1 5 Cannons 64 | . . . . . . . . . . . 6 3 3 . 1 18 3 . . 3 4 . . . . . 8 1 14 AOE 88 | . . 5 . . 4 2 2 3 . 3 6 3 3 . 11 17 8 4 . . . 3 . . . 2 1 2 9 Classes Destroyed 23 | . 3 8 1 1 . 1 . . . 1 1 1 . . . 1 . . . . . . . . . 1 1 . 3 Worker 16 | . . 1 . 2 1 . . . . . 1 . . . . 6 . . . . . . . . . . 2 . 3 Builder 17 | . . 2 . 1 . . . . . . . . . . . 10 . . . . . 2 . . . . . 1 1 Tunneler 5 | . . . 3 1 . . . . . . . . . . . . . . . . . . . . . . . 1 . Hauler 18 | . . 5 . 5 5 . . . . . . . . . . 1 . . . . . . . . . . 1 1 . Recycler 10 | . . 3 . 2 . . . . . . 3 . . . . 2 . . . . . . . . . . . . . Operator 8 | . 1 2 . . 1 . . . . . 1 . . . . . . . . . . . . . . 1 1 1 . Watcher 16 | . 2 1 . 1 . 1 . . . . 2 . . . . 4 . . . . 1 1 . . . . 3 . . Swarmer 53 | . . 6 . 4 . 5 3 4 . 4 4 1 . . 10 12 . . . . . . . . . . . . . Saboteur 2 | . . . . . . . . . . . . . . . . . . . . . . . . . . . . . 2 Grunt 113 | . 11 10 1 11 8 3 1 . . . 11 1 5 . 1 7 9 5 . 1 5 4 . . . 4 7 . 8 Brawler 5 | . . 1 . 2 . . . . . . . . . . . . . . . . . . . . . . . . 2 Duelist 12 | . . 1 1 1 . . . . . . 1 . 1 . . 1 2 . . 1 . . . . . . . . 3 Protector 1 | . . . . . . . . . . . . . . . . 1 . . . . . . . . . . . . . Researcher 4 | . . . . . . . . . . . . . . . . . . . . . . . . . . . 1 . 3 Sentry 35 | . . 7 . 6 4 1 1 . . . 5 . . . 1 1 2 . . 1 1 3 . 1 1 . . . . Specialist 8 | . . . . . . . . . . . 4 . . . . 1 . . . . . . . . . . . . 3 Hunter 26 | . . . . 1 2 1 . . . 1 . . . . . 7 . . . . 2 . . . . 1 5 4 2 Programmer 39 | . . . . . . 1 . . . . 6 . . . . 8 . . . . . . . . . . 13 . 11 Q-Series 1 | . . . . . . . . . . . . . . . . . . . . . . . . . . . . . 1 Behemoth 5 | . . . . . . . . . . 1 1 . . . 1 . 1 . . 1 . . . . . . . . . Cetus Guard 2 | . . . . . . . . . . . . . . . . . . . . . . . 2 . . . . . . Striker 1 | . . . . . . . . . . . . . . . . . . . . . . . . . . 1 . . . Protovariant D 1 | . . . . . . . . . . . . . . . . . . . . . . . . . . . . . 1 Packrat 1 | . . . . . . . . . . . . . . . . . 1 . . . . . . . . . . . . Thug 1 | . . . . . . . . . . . . 1 . . . . . . . . . . . . . . . . . Butcher 3 | . . . . . . . . . . . . 3 . . . . . . . . . . . . . . . . . Mutant 1 | . . . . . . . . . . . . 1 . . . . . . . . . . . . . . . . . Best Kill Streak 17 | . 4 9 3 5 8 3 3 4 . 4 7 5 3 . 5 17 8 5 . 2 5 5 1 1 1 4 6 5 9 Combat Bots Only 8 | . 3 6 2 5 7 3 3 4 . 4 5 5 3 . 5 8 8 5 . 2 4 4 1 1 1 4 4 4 8 Max Kills in Single Turn 11 | . 1 5 1 2 5 2 2 3 . 3 2 2 3 . 5 11 6 2 . 1 1 2 1 1 1 2 3 2 3 Gunslinging 1 | . . . . 1 . . . . . . . . . . . . . . . . . . . . . . . . . Exploded 6 | . . 3 . . 4 2 2 3 . 3 2 2 3 . 5 5 6 2 . . . 2 . . . 2 1 1 2 Melee . | . . . . . . . . . . . . . . . . . . . . . . . . . . . . . . Uniques/NPCs Destroyed . | . . . . . . . . . . . . . . . . . . . . . . . . . . . . . . Combat | -11 -10 -9 -9 -8 -8 -7 -7 -7 -7 -6 -6 -6 -6 -6 -5 -5 -5 -5 -5 -4 -4 -4 -4 -4 -4 -3 -3 -2 -2 -------- Run | Scr Mat Mat Min Mat Sto Fac Low Low Zio Pro Fac Low Low Dat Pro Fac Upp Upp War Pro Fac Ext Cet Arc Hub Res Qua Res Tes Damage Taken 33957 | . 321 1233 430 1430 804 907 219 93 . 665 3005 760 267 . 330 4762 1447 237 52 416 1267 840 202 740 163 978 3365 734 8290 Core 3750 | . 58 250 95 32 150 138 22 . . 147 237 79 21 . 34 258 180 17 12 27 77 56 18 147 . 92 142 . 1461 Absorbed by Shields 1409 | . . . . . . . . . . . 20 . . . . 462 . . . . . 195 73 137 . 339 183 . . Reduced by Siege Mode 654 | . . . . . . . . . . . . . . . . 136 . . . . 89 . . . . . 105 25 299 Redirected to Shielding 20 | . 13 7 . . . . . . . . . . . . . . . . . . . . . . . . . . . Regen/Repaired (Parts) 1722 | . . . . . 55 69 . . . . . . . . . . . . . . . 121 . . . 795 137 . 545 Core Remaining (%) 63 | 100 76 . 13 . 66 . . . . 56 . . . . 56 . . . . 50 . . . . 74 . 82 . . Volleys Fired 993 | . 29 80 15 106 54 34 9 4 . 12 105 16 11 . 11 97 20 10 13 28 42 38 5 5 3 32 72 13 129 Largest 3 | . 2 2 2 2 2 2 2 2 . 2 2 2 2 . 2 2 2 1 1 2 3 3 3 3 3 3 3 3 3 Hottest 258 | . 73 115 88 140 122 122 122 122 . 122 141 148 155 . 148 131 133 90 90 125 251 251 256 256 256 256 209 223 258 Shots Fired 1855 | . 58 156 26 195 103 63 16 6 . 15 187 27 19 . 13 159 37 13 13 38 87 61 14 15 7 54 208 30 235 Gun 1174 | . 58 147 22 195 102 62 15 5 . 13 134 3 . . . 20 13 . . . 38 41 14 15 7 29 142 17 82 Cannon 612 | . . . . . . . . . . . 46 21 17 . 7 130 20 9 13 38 49 17 . . . 23 64 9 149 Launcher 49 | . . 4 . . 1 1 1 1 . 2 7 3 2 . 6 9 4 4 . . . . . . . . . 4 . Special 20 | . . 5 4 . . . . . . . . . . . . . . . . . . 3 . . . 2 2 . 4 Kinetic 170 | . 29 62 12 67 . . . . . . . . . . . . . . . . . . . . . . . . . Thermal 1612 | . 29 90 14 128 102 62 15 5 . 13 180 24 17 . 7 150 33 9 13 38 87 58 14 15 7 52 206 26 218 Explosive 60 | . . 4 . . 1 1 1 1 . 2 7 3 2 . 6 9 4 4 . . . 3 . . . 2 2 4 4 Electromagnetic 13 | . . . . . . . . . . . . . . . . . . . . . . . . . . . . . 13 Robot Hit Streak 59 | . 11 24 14 18 35 15 13 1 . 3 19 16 7 . 3 25 10 7 . 3 18 14 6 8 10 14 29 9 59 Robot Miss Streak 6 | . 2 4 3 6 2 5 1 2 . 3 2 3 2 . 1 6 3 2 . 1 3 1 1 1 1 2 3 1 5 Penetration Max . | . . . . . . . . . . . . . . . . . . . . . . . . . . . . . . Secondary Targets 8 | . 1 1 1 3 . . . . . . . . . . . . . . . . . . 1 . . . 1 . . Max Gunslinging Chain 1 | . 1 1 1 1 . . . . . . . . . . . . . . . . . . 1 . . . 1 . . Capacitor 24 | . . . . . . . . . . . . . . . . . . . . . . . . . . . . . 24 Shots Hit Robots 1316 | . 50 125 24 167 76 43 14 2 . 11 147 17 11 . 8 108 24 7 . 9 50 39 12 9 5 25 155 20 158 Core Hits 933 | . 29 129 16 134 35 22 8 4 . 10 93 15 17 . 17 148 35 14 . 6 18 21 9 4 2 11 61 13 62 Critical Kills 11 | . 1 . . 1 . . . . . . . . . . . 1 . . . . 1 . . . . 1 3 . 3 Critical Parts Destroyed 6 | . . 2 . . . . . . . . . . . . . . . . . . 2 1 1 . . . . . . Critical Strikes 49 | . 2 3 . 7 7 5 . . . . 2 . . . 1 1 1 . . . 5 3 1 . . 2 4 . 5 Burn 25 | . 1 1 . 6 7 5 . . . . 2 . . . . . 1 . . . 1 1 . . . . . . . Meltdown 9 | . . . . . . . . . . . . . . . . 1 . . . . 1 . . . . 1 3 . 3 Destroy 9 | . 1 2 . 1 . . . . . . . . . . . . . . . . 3 1 1 . . . . . . Corrupt 1 | . . . . . . . . . . . . . . . . . . . . . . . . . . . . . 1 Sever 3 | . . . . . . . . . . . . . . . . . . . . . . 1 . . . 1 . . 1 Impale 2 | . . . . . . . . . . . . . . . 1 . . . . . . . . . . . 1 . . Melee Attacks 57 | . . 6 . . . 6 . . 4 8 11 . . . 3 . 1 3 7 2 . . . . 3 . 3 . . Impact 6 | . . 6 . . . . . . . . . . . . . . . . . . . . . . . . . . . Slashing 10 | . . . . . . 6 . . 4 . . . . . . . . . . . . . . . . . . . . Piercing 41 | . . . . . . . . . . 8 11 . . . 3 . 1 3 7 2 . . . . 3 . 3 . . Sneak Attacks 2 | . . 1 . . . . . . . . . . . . . . . . . . . . . . . . 1 . . Combat Hostiles . | . . . . . . . . . . . . . . . . . . . . . . . . . . . . . . Follow-up Attacks . | . . . . . . . . . . . . . . . . . . . . . . . . . . . . . . Damage Inflicted 50210 | . 645 2444 392 2776 1945 1082 454 249 . 468 4588 1036 878 . 1492 6642 1751 901 . 284 1495 1922 381 259 148 1276 5838 1624 9240 Guns 20301 | . 645 1917 359 2776 1486 895 260 20 . 117 2598 79 . . . 363 130 . . . 553 842 381 259 148 453 3359 373 2288 Cannons 13101 | . . . . . . . . . . . 831 424 418 . 34 3042 417 128 . 284 942 64 . . . 259 1781 128 4349 Explosions 15974 | . . 447 . . 459 187 194 229 . 256 1159 533 460 . 1438 3237 1204 773 . . . 827 . . . 464 559 1123 2425 Melee 269 | . . 56 . . . . . . . 95 . . . . 20 . . . . . . . . . . . 98 . . Ramming 31 | . . . . . . . . . . . . . . . . . . . . . . 31 . . . . . . . Kinetic 1913 | . 297 634 189 793 . . . . . . . . . . . . . . . . . . . . . . . . . Thermal 33246 | . 348 1307 203 1983 1486 895 260 20 . 117 3582 503 418 . 34 3706 547 128 . 284 1495 906 381 259 148 712 5140 501 7883 Explosive 13745 | . . 447 . . 459 143 194 229 . 256 936 533 460 . 1438 2936 1204 773 . . . 827 . . . 464 559 1123 764 Electromagnetic 529 | . . . . . . 44 . . . . 70 . . . . . . . . . . . . . . . . . 415 Impact 56 | . . 56 . . . . . . . . . . . . . . . . . . . . . . . . . . . Slashing 477 | . . . . . . . . . . . . . . . . . . . . . . 158 . . . 100 41 . 178 Piercing 213 | . . . . . . . . . . 95 . . . . 20 . . . . . . . . . . . 98 . . Highest Corruption 38 | . . 5 5 2 2 . . . . . 8 3 3 3 4 19 19 19 19 . . . . . . 5 28 . 38 Average Corruption 9 | . . 5 5 2 2 . . . . . 2 2 3 3 3 16 19 19 19 . . . . . . 3 16 . 21 Corruption Purged . | . . . . . . . . . . . . . . . . . . . . . . . . . . . . . . Corruption Blocked 25 | . . . . . . . . . . . . . . . . . . . . . . . . . . . . 5 20 Effects 427 | . . 46 18 29 12 . . . . . 14 8 9 2 5 39 41 19 3 . . . . . . 10 83 . 89 Message Errors 102 | . . 15 6 6 2 . . . . . 2 5 3 1 3 2 14 4 1 . . . . . . 1 20 . 17 Matter Fused 100 | . . 9 3 10 3 . . . . . 2 . 4 . . 9 8 2 1 . . . . . . 3 21 . 25 Heat Flow Errors 53 | . . 7 3 4 2 . . . . . 2 . . . 2 7 3 2 1 . . . . . . 1 9 . 10 Energy Discharges 46 | . . 5 2 3 3 . . . . . . 1 1 . . 3 5 5 . . . . . . . 3 5 . 10 Parts Rejected 8 | . . 1 . . . . . . . . 1 . . . . 1 1 1 . . . . . . . . 1 . 2 Data Loss (minor) 53 | . . 6 3 2 2 . . . . . 4 2 . 1 . 5 3 1 . . . . . . . 2 16 . 6 Data Loss (major) 19 | . . . . 3 . . . . . . 2 . . . . . 2 1 . . . . . . . . 8 . 3 Misfires 21 | . . 1 . 1 . . . . . . . . 1 . . 5 3 3 . . . . . . . . 1 . 6 Alerts 9 | . . 1 1 . . . . . . . 1 . . . . . 1 . . . . . . . . . 1 . 4 Misdirections 6 | . . . . . . . . . . . . . . . . 3 1 . . . . . . . . . . . 2 Weapon Failures 10 | . . 1 . . . . . . . . . . . . . 4 . . . . . . . . . . 1 . 4 Overload Shots 15 | . . . . . . . . . . . . 1 1 . 2 . . . . . . . . . . 11 . . . Effects 4 | . . . . . . . . . . . . . . . 1 . . . . . . . . . . 3 . . . Energy Bleed 1 | . . . . . . . . . . . . . . . . . . . . . . . . . . 1 . . . Heat Surge 3 | . . . . . . . . . . . . . . . 1 . . . . . . . . . . 2 . . . Overflow Damage 1070 | . . 21 . . . 2 . . . . 9 12 . . 213 148 38 23 . . . 71 . . . . 91 49 393 Projectiles 451 | . . 1 . . . . . . . . 4 6 . . . 76 17 . . . . 24 . . . . 42 16 265 Explosions 619 | . . 20 . . . 2 . . . . 5 6 . . 213 72 21 23 . . . 47 . . . . 49 33 128 Melee . | . . . . . . . . . . . . . . . . . . . . . . . . . . . . . . Knockbacks . | . . . . . . . . . . . . . . . . . . . . . . . . . . . . . . Impact . | . . . . . . . . . . . . . . . . . . . . . . . . . . . . . . Kinetic . | . . . . . . . . . . . . . . . . . . . . . . . . . . . . . . Secondary . | . . . . . . . . . . . . . . . . . . . . . . . . . . . . . . Self-Inflicted Damage 1391 | . . 49 . . . 147 . . . 46 80 101 19 . . 346 130 . . . . . . . 96 . . . 377 Shots 30 | . . 1 . . . 4 . . . 1 2 4 1 . . 6 5 . . . . . . . 1 . . . 5 Rammed 3 | . . 1 . . . . . . . . 1 . . . . . . . . . . 1 . . . . . . . Targets Rammed 3 | . . 1 . . . . . . . . 1 . . . . . . . . . . 1 . . . . . . . Kicked . | . . . . . . . . . . . . . . . . . . . . . . . . . . . . . . Crushed . | . . . . . . . . . . . . . . . . . . . . . . . . . . . . . . Highest Temperature 477 | . 126 248 253 270 245 162 150 39 . 162 292 93 56 . 221 443 242 185 235 . 360 63 90 227 189 332 197 181 477 Average Temperature 77 | . 49 42 109 126 60 44 61 19 . 53 81 41 16 . 86 65 80 44 109 . 132 11 42 98 96 99 87 59 106 Received Heat Transfer 4909 | . 180 408 84 639 423 123 66 . . 48 759 138 75 . 33 362 276 129 . 63 169 205 12 18 18 210 156 . 315 Effects 18 | . . . . 1 . . . . . . 2 . . . . 2 . . . . 1 . . . . 1 . . 11 Shutdowns 4 | . . . . . . . . . . . . . . . . . . . . . . . . . . . . . 4 Energy Bleed 3 | . . . . 1 . . . . . . . . . . . 1 . . . . . . . . . . . . 1 Interference 8 | . . . . . . . . . . . 2 . . . . . . . . . 1 . . . . . . . 5 Matter Decay 1 | . . . . . . . . . . . . . . . . . . . . . . . . . . . . . 1 Short Circuit 2 | . . . . . . . . . . . . . . . . 1 . . . . . . . . . 1 . . . Siege Activations 16 | . . . . . . . . . . . . . . . . 3 . . . . 1 . . . . . 5 1 6 Total Turns 304 | . . . . . . . . . . . . . . . . 51 . . . . 29 . . . . . 74 20 130 Longest Duration 34 | . . . . . . . . . . . . . . . . 29 . . . . 29 . . . . . 20 20 34 Robots Corrupted . | . . . . . . . . . . . . . . . . . . . . . . . . . . . . . . Combat Hostiles . | . . . . . . . . . . . . . . . . . . . . . . . . . . . . . . Parts Fried 2 | . . . . . . . . . . . . . . . . . . . . . . 1 1 . . . . . . Impact Corruptions . | . . . . . . . . . . . . . . . . . . . . . . . . . . . . . . Robots Melted 26 | . . . . 2 . 2 . . . . 4 1 . . . 2 1 1 . . 3 . . . . 2 3 . 5 Combat Hostiles 25 | . . . . 2 . 2 . . . . 3 1 . . . 2 1 1 . . 3 . . . . 2 3 . 5 Parts Melted 129 | . 1 2 . 4 9 4 . . . . 20 1 4 . . 17 2 . . . 10 6 . . 3 1 27 3 15 Heat Transferred 48779 | . 1036 2004 321 3509 3404 1961 481 37 . 222 6978 825 630 . 50 4818 1050 200 . 450 2468 1742 544 333 185 964 6372 681 7514 Parts Sabotaged 3 | . . . . . . . . . . . . . . . . 1 . . . . . . . . . . . . 2 Parts Stolen . | . . . . . . . . . . . . . . . . . . . . . . . . . . . . . . Parts Stripped . | . . . . . . . . . . . . . . . . . . . . . . . . . . . . . . Power Chain Reactions 2 | . . . . . . 1 . . . . . . . . . . . . . . . . . . . . . . 1 Missiles Intercepted . | . . . . . . . . . . . . . . . . . . . . . . . . . . . . . . Alert | -11 -10 -9 -9 -8 -8 -7 -7 -7 -7 -6 -6 -6 -6 -6 -5 -5 -5 -5 -5 -4 -4 -4 -4 -4 -4 -3 -3 -2 -2 ------- Run | Scr Mat Mat Min Mat Sto Fac Low Low Zio Pro Fac Low Low Dat Pro Fac Upp Upp War Pro Fac Ext Cet Arc Hub Res Qua Res Tes Peak Influence 1603 | . 204 537 60 372 420 504 . . . . 446 . . . . 1603 . . . . 208 231 724 613 550 480 434 521 1198 Initial 289 | . . 85 47 . 121 126 . . . . 18 . . . . 168 . . . . 25 . 120 289 214 288 84 196 184 Average 302 | . 96 193 35 236 277 307 . . . . 235 . . . . 765 . . . . 74 57 488 507 274 241 284 352 622 Maximum Alert Level 5 | . 1 2 . 1 2 2 . . . . 2 . . . . 5 . . . . 1 1 3 2 2 2 2 2 4 Low Security (%) 38 | 100 89 61 100 37 26 20 . . . . 23 . . . . 30 . . . . 84 86 11 . . 46 27 14 3 Level 1 41 | . 10 29 . 62 53 64 . . . . 70 . . . . 10 . . . . 15 13 24 31 97 40 57 56 31 Level 2 10 | . . 8 . . 20 14 . . . . 5 . . . . 8 . . . . . . 40 68 2 12 15 28 15 Level 3 5 | . . . . . . . . . . . . . . . . 12 . . . . . . 24 . . . . . 41 Level 4 3 | . . . . . . . . . . . . . . . . 36 . . . . . . . . . . . . 8 Level 5 . | . . . . . . . . . . . . . . . . 1 . . . . . . . . . . . . . High Security . | . . . . . . . . . . . . . . . . . . . . . . . . . . . . . . Max Security . | . . . . . . . . . . . . . . . . . . . . . . . . . . . . . . Squads Dispatched 74 | . 2 2 1 3 2 3 . . . . 13 . . . . 13 . . . . 2 1 . . . 8 6 2 16 Investigation 13 | . 1 . 1 1 1 1 . . . . 4 . . . . 1 . . . . . . . . . 3 . . . Extermination 19 | . . . . . . 1 . . . . 5 . . . . 3 . . . . 1 . . . . . 4 . 5 Reinforcement 32 | . 1 2 . . 1 . . . . . 4 . . . . 6 . . . . 1 1 . . . 5 2 2 7 Assault 8 | . . . . . . 1 . . . . . . . . . 3 . . . . . . . . . . . . 4 Garrison 2 | . . . . 2 . . . . . . . . . . . . . . . . . . . . . . . . . Intercept . | . . . . . . . . . . . . . . . . . . . . . . . . . . . . . . Searches Triggered . | . . . . . . . . . . . . . . . . . . . . . . . . . . . . . . Data Miner Redirects 4 | . . . . . . . . . . . . . . . . 2 . . . . . . . . . . . . 2 Construction Impeded 4 | . . . . . . . . . . . . . . . . 3 . . . . . 1 . . . . . . . Haulers Reinforced 3 | . . . . . . . . . . . . . . . . . . . . . 1 . . . . 2 . . . Active Scanning Responses . | . . . . . . . . . . . . . . . . . . . . . . . . . . . . . . Cargo Convoy Interrupts 2 | . . . . . . . . . . . 1 . . . . 1 . . . . . . . . . . . . . Stealth | -11 -10 -9 -9 -8 -8 -7 -7 -7 -7 -6 -6 -6 -6 -6 -5 -5 -5 -5 -5 -4 -4 -4 -4 -4 -4 -3 -3 -2 -2 --------- Run | Scr Mat Mat Min Mat Sto Fac Low Low Zio Pro Fac Low Low Dat Pro Fac Upp Upp War Pro Fac Ext Cet Arc Hub Res Qua Res Tes Distress Signals 33 | . 2 2 . 2 4 1 . . . . 1 . . . . 2 . . . . . 3 2 1 . 4 . 8 1 Communications Jammed 57 | . . . . . . . . . . . . . . . . . . . . . . 3 . . . 23 15 . 16 Distress Signals 57 | . . . . . . . . . . . . . . . . . . . . . . 3 . . . 23 15 . 16 Times Spotted 481 | . 16 33 2 33 23 17 5 4 . 6 44 13 7 . 15 61 13 5 . 13 11 15 15 7 1 16 36 7 63 Peak Tracking Total 9 | . 3 8 2 5 6 4 3 4 . 4 5 5 4 . 5 9 8 5 . 5 5 4 5 8 1 5 4 4 8 Tactical Retreats 20 | . 1 1 . 2 . 1 . 2 . . 2 . . . 1 4 . . . . . . . . . . . . 6 Traps | -11 -10 -9 -9 -8 -8 -7 -7 -7 -7 -6 -6 -6 -6 -6 -5 -5 -5 -5 -5 -4 -4 -4 -4 -4 -4 -3 -3 -2 -2 ------- Run | Scr Mat Mat Min Mat Sto Fac Low Low Zio Pro Fac Low Low Dat Pro Fac Upp Upp War Pro Fac Ext Cet Arc Hub Res Qua Res Tes Traps Triggered 17 | . . . . . . 4 . . . . 2 . . . . . 1 . 1 . 2 1 . . . 4 . . 2 Indirectly 4 | . . . . . . 4 . . . . . . . . . . . . . . . . . . . . . . . Trap Hack Attempts . | . . . . . . . . . . . . . . . . . . . . . . . . . . . . . . Triggered . | . . . . . . . . . . . . . . . . . . . . . . . . . . . . . . Disarmed . | . . . . . . . . . . . . . . . . . . . . . . . . . . . . . . Reprogrammed . | . . . . . . . . . . . . . . . . . . . . . . . . . . . . . . Reused . | . . . . . . . . . . . . . . . . . . . . . . . . . . . . . . Traps Extracted . | . . . . . . . . . . . . . . . . . . . . . . . . . . . . . . Installed . | . . . . . . . . . . . . . . . . . . . . . . . . . . . . . . Triggered 6 | . . . . . . . 1 . . . 1 . . . . . . . 4 . . . . . . . . . . Machines | -11 -10 -9 -9 -8 -8 -7 -7 -7 -7 -6 -6 -6 -6 -6 -5 -5 -5 -5 -5 -4 -4 -4 -4 -4 -4 -3 -3 -2 -2 ---------- Run | Scr Mat Mat Min Mat Sto Fac Low Low Zio Pro Fac Low Low Dat Pro Fac Upp Upp War Pro Fac Ext Cet Arc Hub Res Qua Res Tes Machines Disabled 69 | . . 1 . . 3 5 . . . . 9 . . . . 14 . . . . . 1 2 2 6 1 10 1 14 Max in Single Turn 7 | . . 1 . . 2 3 . . . . 4 . . . . 7 . . . . . 1 . 1 6 1 4 1 2 Garrison Access 5 | . . . . 1 . 1 . . . . . . . . . . . . . . 1 . . . . 1 . . 1 Network Hub 1 | . . . . . . . . . . . . . . . . . . . . . . . . . 1 . . . . Machines Sabotaged . | . . . . . . . . . . . . . . . . . . . . . . . . . . . . . . Garrisons Compromised 1 | . . . . . . . . . . . 1 . . . . . . . . . . . . . . . . . . Overloaded Fab Kills . | . . . . . . . . . . . . . . . . . . . . . . . . . . . . . . Hacking | -11 -10 -9 -9 -8 -8 -7 -7 -7 -7 -6 -6 -6 -6 -6 -5 -5 -5 -5 -5 -4 -4 -4 -4 -4 -4 -3 -3 -2 -2 --------- Run | Scr Mat Mat Min Mat Sto Fac Low Low Zio Pro Fac Low Low Dat Pro Fac Upp Upp War Pro Fac Ext Cet Arc Hub Res Qua Res Tes Machines Accessed 109 | . 6 7 2 7 6 7 . . . . 11 . . 4 . 7 1 . 11 . 5 6 1 1 2 5 10 1 9 Terminals 59 | . 5 7 1 5 5 4 . . . . 6 . . . . 5 . . . . 3 5 1 . 2 . 6 1 3 Fabricators 7 | . . . . . . . . . . . 3 . . . . 1 . . . . . . . . . 1 . . 2 Repair Stations 9 | . . . . . 1 1 . . . . 2 . . . . . . . . . . 1 . . . 1 2 . 1 Recycling Units 3 | . 1 . . . . 1 . . . . . . . . . . . . . . . . . . . 1 . . . Scanalyzers 7 | . . . . 1 . . . . . . . . . . . 1 . . . . 1 . . . . . 2 . 2 Garrison Access 6 | . . . . 1 . 1 . . . . . . . . . . . . . . 1 . . . . 2 . . 1 Total Hacks 360 | . 25 31 3 27 19 15 . . . . 28 . . 26 . 19 1 . 13 . 10 17 2 25 7 11 34 1 46 Successful 212 | . 15 19 2 15 12 7 . . . . 9 . . 26 . 12 1 . 13 . 5 9 1 25 5 8 13 1 14 Failed 148 | . 10 12 1 12 7 8 . . . . 19 . . . . 7 . . . . 5 8 1 . 2 3 21 . 32 Catastrophic 34 | . . 2 . 1 1 3 . . . . 6 . . . . 1 . . . . 1 1 . . . 1 7 . 10 Database Lockouts . | . . . . . . . . . . . . . . . . . . . . . . . . . . . . . . Manual 113 | . 16 22 1 10 6 6 . . . . 10 . . . . 7 . . 2 . 2 8 1 . 4 1 5 1 11 Terminals 200 | . 24 31 2 20 16 9 . . . . 15 . . . . 12 . . . . 5 14 2 . 7 . 26 1 16 Fabricators 20 | . . . . . . . . . . . 7 . . . . 5 . . . . . . . . . 4 . . 4 Repair Stations 30 | . . . . . 3 2 . . . . 6 . . . . . . . . . . 3 . . . 3 6 . 7 Recycling Units 3 | . 1 . . . . 1 . . . . . . . . . . . . . . . . . . . 1 . . . Scanalyzers 27 | . . . . 5 . . . . . . . . . . . 2 . . . . 4 . . . . . 2 . 14 Garrison Access 14 | . . . . 2 . 3 . . . . . . . . . . . . . . 1 . . . . 3 . . 5 Terminal Hacks 137 | . 12 14 2 7 8 2 . . . . 1 . . 26 . 2 1 . 13 . 1 4 1 25 4 . 10 . 4 Record 47 | . . . . . . . . . . . . . . 7 . . . . 12 . . . . 25 . . 2 . 1 Part Schematic 14 | . 2 . . . . . . . . . . . . 10 . . . . . . . 1 . . . . 1 . . Robot Schematic 6 | . . . . . . . . . . . . . . 6 . . . . . . . . . . . . . . . Robot Analysis 9 | . 4 2 . 1 1 . . . . . . . . . . . . . . . . . . . . . 1 . . Prototype ID Bank 7 | . 1 . . 2 1 . . . . . . . . 3 . . . . . . . . . . . . . . . Open Door 6 | . . . 1 . 1 . . . . . . . . . . . 1 . 1 . 1 . 1 . . . . . . Level Access Points 2 | . . . . . 1 . . . . . . . . . . 1 . . . . . . . . . . . . . Branch Access Points 2 | . . . . 1 . . . . . . . . . . . 1 . . . . . . . . . . . . . Emergency Access Points 1 | . . 1 . . . . . . . . . . . . . . . . . . . . . . . . . . . Terminal Index 5 | . 1 1 . . . 1 . . . . . . . . . . . . . . . . . . 1 . 1 . . Garrison Index 1 | . . . . . 1 . . . . . . . . . . . . . . . . . . . . . . . . Alert Level 4 | . . . . . 1 . . . . . . . . . . . . . . . . . . . 1 . 2 . . Unreport Threat 5 | . . 2 . . . . . . . . 1 . . . . . . . . . . 1 . . . . 1 . . Locate Traps 9 | . . 3 . 1 . 1 . . . . . . . . . . . . . . . 1 . . 1 . 1 . 1 Patrol Status 1 | . 1 . . . . . . . . . . . . . . . . . . . . . . . . . . . . Hauler Manifests 3 | . 1 1 . . 1 . . . . . . . . . . . . . . . . . . . . . . . . Zone Layout 15 | . 2 4 1 2 1 . . . . . . . . . . . . . . . . 1 . . 1 . 1 . 2 Fabricator Hacks 12 | . . . . . . . . . . . 3 . . . . 4 . . . . . . . . . 3 . . 2 Network Status 6 | . . . . . . . . . . . 2 . . . . 2 . . . . . . . . . 1 . . 1 Load Schematic 4 | . . . . . . . . . . . 1 . . . . 1 . . . . . . . . . 1 . . 1 Build 2 | . . . . . . . . . . . . . . . . 1 . . . . . . . . . 1 . . . Repair Station Hacks 17 | . . . . . 2 2 . . . . 2 . . . . . . . . . . 2 . . . 2 3 . 4 Scan Component 10 | . . . . . 1 1 . . . . 2 . . . . . . . . . . 1 . . . 1 2 . 2 Repair 7 | . . . . . 1 1 . . . . . . . . . . . . . . . 1 . . . 1 1 . 2 Recycling Unit Hacks 1 | . . . . . . . . . . . . . . . . . . . . . . . . . . 1 . . . Retrieve Components 1 | . . . . . . . . . . . . . . . . . . . . . . . . . . 1 . . . Scanalyzer 10 | . . . . 4 . . . . . . . . . . . 2 . . . . 2 . . . . . . . 2 Insert Component 6 | . . . . 2 . . . . . . . . . . . 1 . . . . 1 . . . . . . . 2 Analyze 4 | . . . . 2 . . . . . . . . . . . 1 . . . . 1 . . . . . . . . Garrison Access Hacks 4 | . . . . 1 . . . . . . . . . . . . . . . . 1 . . . . 1 . . 1 Seal Access 4 | . . . . 1 . . . . . . . . . . . . . . . . 1 . . . . 1 . . 1 Unauthorized Hacks 31 | . 3 5 . 3 2 3 . . . . 3 . . . . 4 . . . . 1 3 . . 1 1 . 1 1 Terminals 25 | . 2 5 . 3 2 2 . . . . 2 . . . . 3 . . . . 1 3 . . 1 . . 1 . Track 3 | . . 1 . . 1 . . . . . . . . . . . . . . . . 1 . . . . . . . Assimilate 4 | . . 1 . 1 . . . . . . . . . . . 1 . . . . . . . . . . . 1 . Botnet 6 | . 1 2 . 1 . . . . . . 1 . . . . 1 . . . . . . . . . . . . . Disrupt 2 | . . . . . 1 . . . . . . . . . . . . . . . . 1 . . . . . . . Operators 10 | . 1 1 . 1 . 2 . . . . 1 . . . . 1 . . . . 1 1 . . 1 . . . . Fabricators 3 | . . . . . . . . . . . 1 . . . . 1 . . . . . . . . . 1 . . . Prioritize 2 | . . . . . . . . . . . . . . . . 1 . . . . . . . . . 1 . . . Recompile 1 | . . . . . . . . . . . 1 . . . . . . . . . . . . . . . . . . Repair Stations . | . . . . . . . . . . . . . . . . . . . . . . . . . . . . . . Recycling Units 2 | . 1 . . . . 1 . . . . . . . . . . . . . . . . . . . . . . . Tunnel 2 | . 1 . . . . 1 . . . . . . . . . . . . . . . . . . . . . . . Scanalyzers 1 | . . . . . . . . . . . . . . . . . . . . . . . . . . . . . 1 Researchers 1 | . . . . . . . . . . . . . . . . . . . . . . . . . . . . . 1 Garrison Access . | . . . . . . . . . . . . . . . . . . . . . . . . . . . . . . Data Cores Recovered 1 | . . . . . . . . . . . 1 . . . . . . . . . . . . . . . . . . Used . | . . . . . . . . . . . . . . . . . . . . . . . . . . . . . . Hacking Detections 75 | . 5 7 1 5 3 5 . . . . 11 . . . . 7 . . . . 3 6 1 . 2 4 8 1 6 Full Trace Events 7 | . . . . 1 1 . . . . . 3 . . . . 1 . . . . . . . . . 1 . . . Feedback Events . | . . . . . . . . . . . . . . . . . . . . . . . . . . . . . . Feedback Blocked . | . . . . . . . . . . . . . . . . . . . . . . . . . . . . . . Robot Schematics Acquired 12 | . . . . . . . . . 4 . . . . 6 . . . . . . . . . . . . . . 2 Robots Built . | . . . . . . . . . . . . . . . . . . . . . . . . . . . . . . Authchips . | . . . . . . . . . . . . . . . . . . . . . . . . . . . . . . Time . | . . . . . . . . . . . . . . . . . . . . . . . . . . . . . . Total Robot Build Rating . | . . . . . . . . . . . . . . . . . . . . . . . . . . . . . . Part Schematics Acquired 42 | . 2 . . 2 . . . . 14 . . . . 10 . 1 . . . . 1 1 . . . . 4 . 7 Parts Built 2 | . . . . . . . . . . . . . . . . 2 . . . . . . . . . . . . . Authchips . | . . . . . . . . . . . . . . . . . . . . . . . . . . . . . . Time 83 | . . . . . . . . . . . . . . . . 58 . . . . . . . . . 25 . . . Total Part Build Rating 14 | . . . . . . . . . . . . . . . . 14 . . . . . . . . . . . . . Parts Repaired 7 | . . . . . 1 1 . . . . . . . . . . . . . . . 1 . . . 1 1 . 2 Time 247 | . . . . . 26 38 . . . . . . . . . . . . . . . 40 . . . 36 34 . 73 Parts Recycled . | . . . . . . . . . . . . . . . . . . . . . . . . . . . . . . Recycled Matter . | . . . . . . . . . . . . . . . . . . . . . . . . . . . . . . Retrieved Matter . | . . . . . . . . . . . . . . . . . . . . . . . . . . . . . . Retrieved Components 1 | . . . . . . . . . . . . . . . . . . . . . . . . . . 1 . . . Parts Scanalyzed 5 | . . . . 2 . . . . . . . . . . . 1 . . . . 1 . . . . . . . 1 Part Schematics Acquired 4 | . . . . 2 . . . . . . . . . . . 1 . . . . 1 . . . . . . . . Parts Damaged . | . . . . . . . . . . . . . . . . . . . . . . . . . . . . . . Bothacking | -11 -10 -9 -9 -8 -8 -7 -7 -7 -7 -6 -6 -6 -6 -6 -5 -5 -5 -5 -5 -4 -4 -4 -4 -4 -4 -3 -3 -2 -2 ------------ Run | Scr Mat Mat Min Mat Sto Fac Low Low Zio Pro Fac Low Low Dat Pro Fac Upp Upp War Pro Fac Ext Cet Arc Hub Res Qua Res Tes Used RIF Installer . | . . . . . . . . . . . . . . . . . . . . . . . . . . . . . . Robots Hacked . | . . . . . . . . . . . . . . . . . . . . . . . . . . . . . . Non-combat . | . . . . . . . . . . . . . . . . . . . . . . . . . . . . . . Combat . | . . . . . . . . . . . . . . . . . . . . . . . . . . . . . . Robot Hacks Applied . | . . . . . . . . . . . . . . . . . . . . . . . . . . . . . . Relay Couplers Released 11 | . . . . . . 3 . . . . . . . . . . . . . . . . . . . 4 . 4 . Machine Destruction 3 | . . . . . . 3 . . . . . . . . . . . . . . . . . . . . . . . Programmers 8 | . . . . . . . . . . . . . . . . . . . . . . . . . . 4 . 4 . Fabnet Peak Effective % . | . . . . . . . . . . . . . . . . . . . . . . . . . . . . . . Robots Rewired 7 | . . . . . . . . . . . . 2 . . . . 2 . . . . 3 . . . . . . . Allies Hacked . | . . . . . . . . . . . . . . . . . . . . . . . . . . . . . . Hacks Repelled . | . . . . . . . . . . . . . . . . . . . . . . . . . . . . . . Allies | -11 -10 -9 -9 -8 -8 -7 -7 -7 -7 -6 -6 -6 -6 -6 -5 -5 -5 -5 -5 -4 -4 -4 -4 -4 -4 -3 -3 -2 -2 -------- Run | Scr Mat Mat Min Mat Sto Fac Low Low Zio Pro Fac Low Low Dat Pro Fac Upp Upp War Pro Fac Ext Cet Arc Hub Res Qua Res Tes Total Allies 36 | . . . . 1 . . . . 2 . 3 2 . . 1 1 2 . 2 . . 17 5 . . . . . . Largest Group 14 | . . . . 1 1 . . . 2 2 3 2 2 1 2 1 1 1 2 2 . 11 14 11 . . . . . Highest-Rated Group 985 | . . . . 26 26 . . . 79 79 93 51 51 31 127 26 30 30 192 192 . 601 985 753 . . . . . Highest-Rated Ally 159 | . . . . 26 26 . . . 51 51 31 31 31 31 96 26 30 30 96 96 . 159 159 96 . . . . . Total Orders 10 | . . . . . . . . . . . 8 . . . . . 1 1 . . . . . . . . . . . EXPLORE 8 | . . . . . . . . . . . 6 . . . . . 1 1 . . . . . . . . . . . RETURN 2 | . . . . . . . . . . . 2 . . . . . . . . . . . . . . . . . . Ally Attacks 312 | . . . . . . . . . . 2 22 6 15 . 37 . 2 . . 31 . 43 105 49 . . . . . Total Damage 9374 | . . . . . . . . . . 62 445 140 192 . 1010 . 112 . . 1441 . 1455 3162 1355 . . . . . Kills 55 | . . . . . . . . . . . 2 3 1 . 7 . . . . 5 . 10 16 11 . . . . . Allies Corrupted . | . . . . . . . . . . . . . . . . . . . . . . . . . . . . . . Allies Melted 4 | . . . . . . . . . . . . . . . . . . . 1 . . 1 . . . . . 2 . Intel | -11 -10 -9 -9 -8 -8 -7 -7 -7 -7 -6 -6 -6 -6 -6 -5 -5 -5 -5 -5 -4 -4 -4 -4 -4 -4 -3 -3 -2 -2 ------- Run | Scr Mat Mat Min Mat Sto Fac Low Low Zio Pro Fac Low Low Dat Pro Fac Upp Upp War Pro Fac Ext Cet Arc Hub Res Qua Res Tes Robot Analysis Total 9 | . 4 2 . 1 1 . . . . . . . . . . . . . . . . . . . . . 1 . . Derelict Logs Recovered 9 | . . . . . . . . 1 . 1 . 1 2 . 1 . 1 . . 2 . . . . . . . . . Drone Launches 9 | . . . . . . . . . . . 7 . . . . . 2 . . . . . . . . . . . . Drone Recoveries 6 | . . . . . . . . . . . 6 . . . . . . . . . . . . . . . . . . Exploration | -11 -10 -9 -9 -8 -8 -7 -7 -7 -7 -6 -6 -6 -6 -6 -5 -5 -5 -5 -5 -4 -4 -4 -4 -4 -4 -3 -3 -2 -2 ------------- Run | Scr Mat Mat Min Mat Sto Fac Low Low Zio Pro Fac Low Low Dat Pro Fac Upp Upp War Pro Fac Ext Cet Arc Hub Res Qua Res Tes Turns Passed 29563 | 62 773 1986 852 1735 1024 1011 454 525 933 634 3192 959 1055 130 552 1555 858 399 1195 706 824 1006 340 234 139 1501 2074 733 2122 Spaces Moved 14676 | 37 402 786 379 729 339 534 353 445 796 478 1348 349 401 76 250 690 369 226 691 376 396 558 194 129 72 836 1019 422 996 Core 132 | 8 . . . . . . . . . . . . . . . . . . . . . . . . . . . . 124 Treads 11494 | 29 402 786 379 729 339 58 . . . . 1089 349 401 76 250 690 369 226 691 376 396 558 194 129 72 836 1019 422 629 Legs 10 | . . . . . . . . . . . . . . . . . . . . . . . . . . . . . 10 Wheels 3040 | . . . . . . 476 353 445 796 478 259 . . . . . . . . . . . . . . . . . 233 Hover . | . . . . . . . . . . . . . . . . . . . . . . . . . . . . . . Flight . | . . . . . . . . . . . . . . . . . . . . . . . . . . . . . . Fastest Speed 50 | 50 160 160 160 156 235 115 115 115 115 115 115 237 250 166 164 160 160 160 160 166 152 150 152 160 160 158 153 153 50 Average Speed 167 | 136 160 199 209 176 235 152 115 115 115 117 188 248 250 170 188 164 198 160 163 166 156 151 153 160 160 159 158 153 152 Slowest Speed 400 | 160 160 240 240 240 236 240 115 115 115 145 325 330 252 250 250 250 240 160 166 166 166 152 160 160 160 163 165 153 400 Overloaded Moves . | . . . . . . . . . . . . . . . . . . . . . . . . . . . . . . Propulsion Burnouts . | . . . . . . . . . . . . . . . . . . . . . . . . . . . . . . Robots Hopped 1 | . . . . . . . . . . . . . . . . . . . . . . . 1 . . . . . . Cave-ins Triggered 2 | . . . . . . . . . . . . . . . . 2 . . . . . . . . . . . . . Exploration Rate (%) 52 | 3 64 61 53 50 49 15 63 75 85 68 47 49 64 68 43 22 60 58 87 56 12 55 67 86 10 30 82 19 76 Regions Visited 29 Branch Regions 20 Pre-discovered Areas 6 | . 1 . . . . 1 . . 1 . . . . 1 . . . . 2 . . . . . . . . . . Known Exits Taken 25 | . . . . 1 1 1 1 1 1 1 1 1 1 1 1 1 1 1 1 1 1 1 1 1 1 1 1 1 . Unknown Exits Taken 4 | 1 1 1 1 . . . . . . . . . . . . . . . . . . . . . . . . . . Scrap Searched 22 | . . . . . . . 4 2 3 1 . . 3 . 2 . 2 1 . 4 . . . . . . . . . Spaces Dug 138 | . . 4 . . . 6 . . 1 3 14 1 2 . 3 10 4 4 14 23 11 14 . . 1 10 1 . 12 Terrain Destroyed 1481 | . . 37 . . 8 9 6 8 1 20 100 55 64 . 52 327 75 43 14 27 19 40 . 3 160 31 27 74 281 Melee 23 | . . 4 . . . 6 . . 1 3 5 . . . . . . 2 1 . . . . . 1 . . . . Projectile 229 | . . . . . 1 . . . . 1 19 6 5 . 4 36 7 5 13 27 19 14 . 3 . 13 13 3 40 AOE 1229 | . . 33 . . 7 3 6 8 . 16 76 49 59 . 48 291 68 36 . . . 26 . . 159 18 14 71 241 Terrain Rammed . | . . . . . . . . . . . . . . . . . . . . . . . . . . . . . . Walls Destroyed . | . . . . . . . . . . . . . . . . . . . . . . . . . . . . . . Machines Disabled . | . . . . . . . . . . . . . . . . . . . . . . . . . . . . . . Actions | -11 -10 -9 -9 -8 -8 -7 -7 -7 -7 -6 -6 -6 -6 -6 -5 -5 -5 -5 -5 -4 -4 -4 -4 -4 -4 -3 -3 -2 -2 --------- Run | Scr Mat Mat Min Mat Sto Fac Low Low Zio Pro Fac Low Low Dat Pro Fac Upp Upp War Pro Fac Ext Cet Arc Hub Res Qua Res Tes Total 17811 | 47 476 1034 405 993 463 664 382 451 809 518 1772 410 430 78 312 941 450 245 739 415 516 654 229 145 83 950 1319 483 1398 Wait 1107 | . 26 107 1 67 31 44 13 1 1 2 199 5 7 . 24 85 20 1 5 . 29 27 10 6 . 52 167 11 166 Move 14646 | 36 401 785 378 728 338 533 352 444 795 477 1348 348 400 75 249 689 368 225 690 375 395 557 191 128 71 835 1018 421 996 Hop 1 | . . . . . . . . . . . . . . . . . . . . . . . 1 . . . . . . Pick Up 197 | 5 14 17 3 23 13 8 . . 2 1 18 1 2 . 7 12 4 . 7 1 6 3 4 . . 4 18 11 13 Fast Attach 155 | 3 1 4 . 16 5 4 . . 1 4 16 2 3 . 1 12 6 1 3 2 13 3 6 2 . 8 6 6 27 Attach 111 | 3 . 8 2 8 1 3 . . . . 14 8 2 1 6 9 4 . 2 . 4 3 . . . 3 9 3 18 Detach 55 | . . . . 1 2 3 . . . . 7 1 3 2 3 3 3 . 2 . 4 1 . 1 . . 6 4 9 Swap 224 | . 2 11 4 12 6 17 7 2 2 10 31 4 2 . 4 16 12 5 1 5 13 6 1 . 6 7 10 7 21 Drop 214 | . 3 15 2 32 13 12 1 . 4 4 23 . . . 4 17 4 . 9 2 10 3 11 . . 9 10 7 19 Fire 993 | . 29 80 15 106 54 34 9 4 . 12 105 16 11 . 11 97 20 10 13 28 42 38 5 5 3 32 72 13 129 Melee 57 | . . 6 . . . 6 . . 4 8 11 . . . 3 . 1 3 7 2 . . . . 3 . 3 . . Ram 1 | . . . . . . . . . . . . . . . . 1 . . . . . . . . . . . . . Kick . | . . . . . . . . . . . . . . . . . . . . . . . . . . . . . . Crush 2 | . . 1 . . . . . . . . . . . . . . . . . . . 1 . . . . . . . Escape Stasis . | . . . . . . . . . . . . . . . . . . . . . . . . . . . . . . Rewire 47 | . . . . . . . . . . . . 25 . . . . 7 . . . . 12 . 3 . . . . . Trap . | . . . . . . . . . . . . . . . . . . . . . . . . . . . . . . Miscellaneous 1 | . . . . . . . . . . . . . . . . . 1 . . . . . . . . . . . . Route ------- -11/Scrapyard -10/Materials (discovered 2 exits: *Mat x2) -9/Materials (discovered 3 exits: *Mat x2 / *Min) -9/Mines (discovered 3 exits: *Mat / [*Exi] / *Zio) -8/Materials (discovered 2 exits: *Fac / *Sto) -8/Storage -7/Factory (discovered 2 exits: *Fac / *Low) -7/Lower Caves -7/Lower Caves (discovered 2 exits: *Fac / *Zio) -7/Zion -6/Proximity Caves -6/Factory (discovered 4 exits: *Fac x3 / *Low) -6/Lower Caves -6/Lower Caves -6/Data Miner -5/Proximity Caves -5/Factory (discovered 6 exits: Fac x4 / *Upp x2) -5/Upper Caves -5/Upper Caves (discovered 2 exits: *Fac / *War) -5/Warlord -4/Proximity Caves -4/Factory (discovered 4 exits: *Res / *Upp x2 / *Ext) -4/Extension (discovered 2 exits: *Res / *Cet) -4/Cetus (discovered 2 exits: *Res / *Arc) -4/Archives (discovered 2 exits: *Res / *Hub) -4/Hub_04(d) -3/Research (discovered 2 exits: *Res / *Qua) -3/Quarantine -2/Research (discovered 2 exits: *Acc / *Tes) -2/Testing (discovered 1 exit: *Acc) History --------- Turn | Location | Event 11 | -11/Scrapyard | Discovered new exit (range 14) 63 | -11/Scrapyard | Entered Materials 314 | -10/Materials | Build established: Mutant 394 | -10/Materials | Discovered new exit (range 10) 788 | -10/Materials | Discovered new exit (range 15) 836 | -10/Materials | Entered another Materials area 836 | -9/Materials | Evolved 2 slots: Utility x2 1336 | -9/Materials | Discovered new exit (range 9) 1380 | -9/Materials | Discovered new exit (range 10) 1753 | -9/Materials | Lost 3 parts (1n1u1w) 1771 | -9/Materials | Core integrity fell below 50% 2334 | -9/Materials | Discovered new exit (range 16) 2822 | -9/Materials | Entered Mines 2833 | -9/Mines | Met a Derelict shopkeep closing up shop 3238 | -9/Mines | Deemed a non-threat by the Exiles lab entrance 3238 | -9/Mines | Discovered new exit (range 5) 3410 | -9/Mines | Core integrity fell below 20% 3476 | -9/Mines | Discovered new exit (range 8) 3652 | -9/Mines | A Derelict revealed a hidden shortcut to a safe place 3674 | -9/Mines | Entered Materials 3674 | -8/Materials | Evolved 2 slots: Propulsion x2 3754 | -8/Materials | Garrison activated, responded to threat 3899 | -8/Materials | Garrison activated, responded to threat 4042 | -8/Materials | Lost 3 parts (1n1u1w) 4298 | -8/Materials | Build established: Scavenger-Mutant 4628 | -8/Materials | Identified exit to Storage 4872 | -8/Materials | Discovered new exit (range 16) 5409 | -8/Materials | Entered Storage 5409 | -8/Storage | Accompanied by 1 ally 5630 | -8/Storage | Repaired Lgt. Treads 5841 | -8/Storage | Identified exit to Factory 5909 | -8/Storage | Destroyed 7 combat bots 6045 | -8/Storage | Build established: Mutant 6433 | -8/Storage | Entered Factory 6433 | -7/Factory | Evolved 2 slots: Propulsion x1, Utility x1 6939 | -7/Factory | Discovered new exit (range 5) 6993 | -7/Factory | Repaired Adv. Treads 7396 | -7/Factory | Discovered new exit (range 9) 7412 | -7/Factory | Identified exit to Lower Caves 7444 | -7/Factory | Entered Lower Caves 7714 | -7/Lower Caves | Attracted the attention of an 0b10 checkpoint 7885 | -7/Lower Caves | Discovered new exit (range 12) 7897 | -7/Lower Caves | Identified exit to Lower Caves 7898 | -7/Lower Caves | Entered another Lower Caves area 7940 | -7/Lower Caves | Discovered new exit (range 15) 7957 | -7/Lower Caves | Identified exit to Factory 8070 | -7/Lower Caves | Learned Factory garrison access intel 8373 | -7/Lower Caves | Discovered new exit (range 7) 8378 | -7/Lower Caves | Identified exit to Zion 8423 | -7/Lower Caves | Entered Zion 8520 | -7/Zion | Discovered new exit (range 11) 8555 | -7/Zion | Given the Hacking Drone Bay 8556 | -7/Zion | Found Prototype Device 8687 | -7/Zion | Learned location of Armory (-3) 8793 | -7/Zion | Gained Derelict followers 9005 | -7/Zion | Learned Factory emergency access door positions 9121 | -7/Zion | Given A8's code to call for help 9185 | -7/Zion | Found CR-A16's Pointy Stick 9355 | -7/Zion | Identified exit to Proximity Caves 9356 | -7/Zion | Entered Proximity Caves 9356 | -6/Proximity Caves | Accompanied by 2 allies 9590 | -6/Proximity Caves | Learned Factory terminal intel 9690 | -6/Proximity Caves | Spotted B-75 Beast 9708 | -6/Proximity Caves | Revealed the true nature of CR-A16's Pointy Stick 9712 | -6/Proximity Caves | Destroyed B-75 Beast 9987 | -6/Proximity Caves | Discovered exit to Factory (range 3) 9990 | -6/Proximity Caves | Entered Factory 9990 | -6/Factory | Evolved 2 slots: Utility x2 9992 | -6/Factory | Loaded intel: 26 terminal locations 9993 | -6/Factory | Loaded intel: 4 garrison access locations 10005 | -6/Factory | Identified Hacking Drone Bay 10215 | -6/Factory | Discovered new exit (range 17) 10266 | -6/Factory | Allied Derelicts emerged from ambush trap array 10298 | -6/Factory | Identified exit to Factory 10711 | -6/Factory | Build established: Skirmisher 10777 | -6/Factory | Spotted B-75 Beast 10821 | -6/Factory | Destroyed B-75 Beast 11092 | -6/Factory | Discovered exit to Factory (range 16) 11118 | -6/Factory | Build established: Mutant 11210 | -6/Factory | Found Prototype Launcher 11210 | -6/Factory | Identified Scatter Rocket Array 11465 | -6/Factory | Cargo convoy interrupted 12687 | -6/Factory | Discovered exit to Factory (range 23) 13080 | -6/Factory | Discovered new exit (range 7) 13180 | -6/Factory | Identified exit to Lower Caves 13182 | -6/Factory | Entered Lower Caves 13213 | -6/Lower Caves | Lost 3 parts (1n2u) 13222 | -6/Lower Caves | Encountered a Warlord checkpoint 13484 | -6/Lower Caves | Attacked by a faux Warlord 13522 | -6/Lower Caves | Lost 3 parts (2n1w) 13820 | -6/Lower Caves | Learned Factory terminal intel 13952 | -6/Lower Caves | Discovered new exit (range 15) 13980 | -6/Lower Caves | Identified exit to Lower Caves 14141 | -6/Lower Caves | Entered another Lower Caves area 14141 | -6/Lower Caves | Accompanied by 2 allies 14206 | -6/Lower Caves | Encountered a Warlord checkpoint 15043 | -6/Lower Caves | Discovered new exit (range 9) 15066 | -6/Lower Caves | Learned Factory emergency access door positions 15076 | -6/Lower Caves | Identified exit to Data Miner 15196 | -6/Lower Caves | Entered Data Miner 15196 | -6/Data Miner | Accompanied by 1 ally 15196 | -6/Data Miner | Discovered new exit (range 6) 15232 | -6/Data Miner | Met Data Miner 15265 | -6/Data Miner | Learned location of Section 7 (-2) 15265 | -6/Data Miner | Acquired the access code to Warlord's prototype stash 15288 | -6/Data Miner | Received God Mode back door access code from Data Miner 15323 | -6/Data Miner | Identified exit to Proximity Caves 15326 | -6/Data Miner | Entered Proximity Caves 15326 | -5/Proximity Caves | Accompanied by 1 ally 15411 | -5/Proximity Caves | Attracted the attention of an 0b10 checkpoint 15413 | -5/Proximity Caves | Escorted by Enhanced Grunt 15495 | -5/Proximity Caves | Spotted B-75 Beast 15505 | -5/Proximity Caves | Destroyed B-75 Beast 15528 | -5/Proximity Caves | Learned Factory trap positions 15841 | -5/Proximity Caves | Discovered exit to Factory (range 14) 15878 | -5/Proximity Caves | Entered Factory 15878 | -5/Factory | Evolved 2 slots: Power x1, Propulsion x1 15879 | -5/Factory | Loaded intel: 136 trap records 15881 | -5/Factory | Loaded intel: 26 terminal locations 15992 | -5/Factory | Incoming investigation squad redirected 16033 | -5/Factory | Fabricated Hvy. Siege Treads (x2) 16513 | -5/Factory | Cargo convoy interrupted 16659 | -5/Factory | Lost 4 parts (1p1n1u1w) 16672 | -5/Factory | Found Prototype Protection 16674 | -5/Factory | Crushed by falling debris 16674 | -5/Factory | System corruption reached 10% 16675 | -5/Factory | Crushed by falling debris 16699 | -5/Factory | Identified Active Cooling Armor 16706 | -5/Factory | Lost 3 parts (1p2u) 16729 | -5/Factory | Identified exit to Factory 16863 | -5/Factory | Destroyed 8 combat bots 17078 | -5/Factory | First assault squad dispatched 17093 | -5/Factory | Identified exit to Upper Caves 17096 | -5/Factory | Incoming assault squad redirected 17372 | -5/Factory | Build established: Hacker-Mutant 17433 | -5/Factory | Entered Upper Caves 17450 | -5/Upper Caves | Attracted the attention of an 0b10 outpost 17451 | -5/Upper Caves | Lost 3 parts (2p1u) 17472 | -5/Upper Caves | Attracted the attention of an 0b10 checkpoint 17521 | -5/Upper Caves | Destroyed 8 combat bots 17947 | -5/Upper Caves | Spotted B-75 Beast 17975 | -5/Upper Caves | Destroyed B-75 Beast 17988 | -5/Upper Caves | Learned Factory non-interactive machine intel 18283 | -5/Upper Caves | Discovered new exit (range 5) 18287 | -5/Upper Caves | Identified exit to Upper Caves 18291 | -5/Upper Caves | Entered another Upper Caves area 18291 | -5/Upper Caves | Accompanied by 2 allies 18308 | -5/Upper Caves | Discovered exit to Factory (range 18) 18675 | -5/Upper Caves | Discovered new exit (range 10) 18688 | -5/Upper Caves | Identified exit to Warlord 18690 | -5/Upper Caves | Entered Warlord 18745 | -5/Warlord | System corruption cleaned by Quarantine Array 19164 | -5/Warlord | Learned Armory repair station intel 19166 | -5/Warlord | Learned 4 Command zone layouts 19168 | -5/Warlord | Learned Research stockpile data 19208 | -5/Warlord | Met Warlord 19224 | -5/Warlord | Warlord's base attacked by MAIN.C 19225 | -5/Warlord | Opened Warlord's prototype stash 19229 | -5/Warlord | Enhanced Grunt warped into view, answering call for help 19231 | -5/Warlord | Found Prototype Reactor 19231 | -5/Warlord | Identified Vortex Chain Reactor 19247 | -5/Warlord | Found Prototype Device 19247 | -5/Warlord | Identified System Purifier 19251 | -5/Warlord | Found Prototype Processor 19251 | -5/Warlord | Identified Exp. Target Analyzer 19252 | -5/Warlord | Enhanced Grunt warped into view, answering call for help 19496 | -5/Warlord | Found Prototype Special Weapon 19499 | -5/Warlord | Found Prototype Special Weapon 19502 | -5/Warlord | Found Prototype Special Weapon 19505 | -5/Warlord | Found Prototype Special Weapon 19574 | -5/Warlord | Warlord forces counterattacked 19808 | -5/Warlord | Opened side exit 19868 | -5/Warlord | Discovered new exit (range 9) 19879 | -5/Warlord | Identified exit to Proximity Caves 19885 | -5/Warlord | Entered Proximity Caves 19885 | -4/Proximity Caves | Accompanied by 2 allies 19915 | -4/Proximity Caves | Learned Research stockpile data 20042 | -4/Proximity Caves | Attracted the attention of an 0b10 checkpoint 20196 | -4/Proximity Caves | Spotted B-86 Titan 20203 | -4/Proximity Caves | Destroyed B-86 Titan 20360 | -4/Proximity Caves | Learned Research non-interactive machine intel 20489 | -4/Proximity Caves | Build established: Scavenger-Mutant 20583 | -4/Proximity Caves | Discovered exit to Factory (range 6) 20591 | -4/Proximity Caves | Entered Factory 20591 | -4/Factory | Evolved 2 slots: Utility x1, Weapon x1 20592 | -4/Factory | Identified exit to Extension 20593 | -4/Factory | Loaded intel: 243 non-interactive machine locations 20892 | -4/Factory | Lost 3 parts (2n1u) 20964 | -4/Factory | Discovered new exit (range 13) 20981 | -4/Factory | Identified exit to Upper Caves 21179 | -4/Factory | Discovered new exit (range 16) 21218 | -4/Factory | Identified exit to Research 21349 | -4/Factory | Discovered exit to Upper Caves (range 15) 21415 | -4/Factory | Entered Extension 21692 | -4/Extension | Rescued a captive Derelict 21705 | -4/Extension | Build established: Hacker-Skirmisher 21806 | -4/Extension | Rescued a captive Derelict 21821 | -4/Extension | Rescued a captive Derelict 21829 | -4/Extension | Rescued a captive Derelict 21876 | -4/Extension | Rescued a captive Derelict 21891 | -4/Extension | Rescued a captive Derelict 21999 | -4/Extension | Identified RU-N14's Throwing Claymores v3 (x4) 22092 | -4/Extension | Repaired Cld. Plasma Cannon 22170 | -4/Extension | Rescued A7 22252 | -4/Extension | Rescued a captive Derelict 22252 | -4/Extension | Rescued a captive Derelict 22271 | -4/Extension | Rescued a captive Derelict 22271 | -4/Extension | Rescued a captive Derelict 22282 | -4/Extension | Build established: Hacker-Mutant 22289 | -4/Extension | Rescued a captive Derelict 22290 | -4/Extension | Rescued a captive Derelict 22369 | -4/Extension | Rescued a captive Derelict 22394 | -4/Extension | Discovered exit to Research (range 10) 22395 | -4/Extension | Discovered new exit (range 6) 22418 | -4/Extension | Identified exit to Cetus 22421 | -4/Extension | Entered Cetus 22421 | -4/Cetus | Accompanied by 11 allies (A7) 22426 | -4/Cetus | Acquired a Cetus Manufacturing Module code from A7 22441 | -4/Cetus | Spotted Cetus Guard 22441 | -4/Cetus | Spotted Cetus Guard 22443 | -4/Cetus | Spotted Cetus Guard 22447 | -4/Cetus | Spotted Cetus Guard 22453 | -4/Cetus | Destroyed Cetus Guard 22459 | -4/Cetus | Allies destroyed Cetus Guard 22461 | -4/Cetus | Allies destroyed Cetus Guard 22461 | -4/Cetus | Allies destroyed Cetus Guard 22532 | -4/Cetus | Started Cetus Manufacturing Module 22545 | -4/Cetus | Escorted A7 to Cetus Mainframe 22557 | -4/Cetus | Manufactured an Enhanced Grunt 22582 | -4/Cetus | Manufactured an Enhanced Grunt 22607 | -4/Cetus | Manufactured an Enhanced Grunt 22632 | -4/Cetus | Manufactured an Enhanced Grunt 22632 | -4/Cetus | Discovered new exit (range 16) 22657 | -4/Cetus | Manufactured an Enhanced Grunt 22661 | -4/Cetus | Spotted Cetus Guard 22661 | -4/Cetus | Spotted Cetus Guard 22662 | -4/Cetus | Spotted Cetus Guard 22662 | -4/Cetus | Spotted Cetus Guard 22669 | -4/Cetus | Allies destroyed Cetus Guard 22676 | -4/Cetus | Allies destroyed Cetus Guard 22678 | -4/Cetus | Destroyed Cetus Guard 22678 | -4/Cetus | Allies destroyed Cetus Guard 22686 | -4/Cetus | Discovered exit to Research (range 15) 22698 | -4/Cetus | Met Revision 17 22749 | -4/Cetus | Identified exit to Archives 22761 | -4/Cetus | Entered Archives 22761 | -4/Archives | Accompanied by 11 allies 22805 | -4/Archives | Met Zhirov 22811 | -4/Archives | Reinforcements dispatched to Archives 22813 | -4/Archives | Unable to access archive contents 22834 | -4/Archives | Read partially decrypted archive contents 22842 | -4/Archives | Discovered new exit (range 15) 22856 | -4/Archives | Reinforcements dispatched to Archives 22858 | -4/Archives | Zhirov warped through subspace 22865 | -4/Archives | Identified exit to Hub_04(d) 22876 | -4/Archives | Zhirov detonated Archives 22957 | -4/Archives | Discovered exit to Research (range 16) 22995 | -4/Archives | Entered Hub_04(d) 23014 | -4/Hub_04(d) | Discovered exit to Research (range 12) 23130 | -4/Hub_04(d) | Network Hub disabled 23134 | -4/Hub_04(d) | Entered Research 23134 | -3/Research | Evolved 2 slots: Utility x2 23136 | -3/Research | Loaded intel: 67 non-interactive machine locations 23334 | -3/Research | Revision forces began assault on 0b10 23361 | -3/Research | Met up with Revision 17++ 23386 | -3/Research | Spotted B-86 Titan 23465 | -3/Research | Repaired Centrium Heavy Treads 23699 | -3/Research | Build established: Scavenger-Tank 23716 | -3/Research | Discovered new exit (range 9) 23731 | -3/Research | Identified exit to Research 23834 | -3/Research | Research terminal network offline 24300 | -3/Research | Spotted B-90 Cyclops 24475 | -3/Research | Spotted Striker 24484 | -3/Research | Destroyed Striker 24621 | -3/Research | Discovered new exit (range 7) 24633 | -3/Research | Identified exit to Quarantine 24635 | -3/Research | Entered Quarantine 24858 | -3/Quarantine | Repaired Linear Accelerator? 25158 | -3/Quarantine | Discovered exit to Research (range 9) 25278 | -3/Quarantine | System corruption reached 10% 25310 | -3/Quarantine | Build established: Hacker-Skirmisher 25811 | -3/Quarantine | Found Alien Artifact 25833 | -3/Quarantine | Found Alien Energy Cannon 25837 | -3/Quarantine | Identified Core Cannon 25919 | -3/Quarantine | Cryocooling Duct disabled 25934 | -3/Quarantine | Ambient heat levels rising (+20) 25934 | -3/Quarantine | Non-combat units ordered to evacuate 26405 | -3/Quarantine | Found Alien Artifact 26688 | -3/Quarantine | Build established: Skirmisher 26709 | -3/Quarantine | Entered Research 26709 | -2/Research | Warlord forces began assault on 0b10 26709 | -2/Research | Evolved 2 slots: Power x1, Utility x1 26819 | -2/Research | Research machine network offline 27016 | -2/Research | Build established: Generator-Skirmisher 27022 | -2/Research | Borebot progress halted 27108 | -2/Research | Discovered new exit (range 10) 27120 | -2/Research | Identified exit to Access 27220 | -2/Research | Spotted Striker 27254 | -2/Research | Discovered new exit (range 15) 27275 | -2/Research | Identified exit to Testing 27379 | -2/Research | Build established: Generator-Tank 27442 | -2/Research | Entered Testing 27630 | -2/Testing | Repaired Centrium Medium Armor Plating 27650 | -2/Testing | Repaired Hvy. Armor Plating 28015 | -2/Testing | Found Prototype Device 28015 | -2/Testing | Identified Exp. Shield Generator 28016 | -2/Testing | System corruption reached 10% 28107 | -2/Testing | Found Prototype Launcher 28107 | -2/Testing | Identified Point Singularity Launcher 28131 | -2/Testing | Spotted Striker 28296 | -2/Testing | Found Prototype Energy Cannon 28296 | -2/Testing | Identified Potential Cannon 28405 | -2/Testing | Scanned by Researcher 28432 | -2/Testing | Found Prototype Energy Gun 28432 | -2/Testing | Identified Warp Gun 28442 | -2/Testing | First assault squad dispatched 28524 | -2/Testing | Spotted PD-8YAYYE40UM 28542 | -2/Testing | Destroyed 8 combat bots 28577 | -2/Testing | Destroyed PD-8YAYYE40UM 28625 | -2/Testing | Found Prototype Launcher 28626 | -2/Testing | Identified Ragnarok Missile Launcher 28757 | -2/Testing | Incoming assault squad redirected 28830 | -2/Testing | Found Quantum Capacitor 28894 | -2/Testing | System corruption reached 30% 28924 | -2/Testing | Lost 5 parts (2n3w) 28967 | -2/Testing | Incoming assault squad redirected 29191 | -2/Testing | Build established: Scavenger-Mutant 29451 | -2/Testing | Core integrity fell below 50% 29515 | -2/Testing | Discovered exit to Access (range 14) 29526 | -2/Testing | Core integrity fell below 20% 29556 | -2/Testing | Lost 17 parts (4p4n6u3w) 29557 | -2/Testing | Unstable Terrabomb Derivative detonated 29564 | -2/Testing | Destroyed by G-73 Enforcer with Heavy Laser Last Messages --------------- 29506_ K-01 Serf collects debris. 29507_ U-05 Engineer builds a Wall. 29511_ Acquired 6 matter. 29512_ Acquired 19 matter. 29512_ Acquired 1 matter. 29515_ EXIT=FOUND: ACCESS 29515_ Acquired 7 matter. 29518_ O-24 Administrator: "IFF HANDSHAKE FAILED. SECURING TERMINAL." 29525_ Adv. Targeting Computer destroyed. 29525_ ALERT: Hostiles spotted, dispatching reinforcements to Terminal T006. 29541_ System corrupted: Matter fused (-10). 29542_ ALERT: Terrabomb reconfiguration apparatus unstable. Structure dematerialization imminent. 29542_ TB3 Reconfiguration Apparatus disabled. 29549_ Acquired 24 matter. 29557_ Acquired Mic. Antimatter Reactor. 29557_ U-05 Engineer builds a Wall. 29558_ System corrupted: Matter fused (-9). 29561_ U-05 Engineer builds a Wall. Map ----- +----------------------------------------------------+ | # # #????# #????????????????????????? | | + + #????# #????????????????????????? | | # # ! #######+####+##???????????????????????? | | # # # #???????????????????????? | | # #""" # #???????????????????????? | | # #""" # #?????????##########????? | | # #""" # c #??????#### ## ##???? | | # #""" # "" " #??????# # ##??? | | # #""" + """""""""" #???#### # #??? | | # # !# """ " #???# ##??? | | # + # """"&"""c" ; ?# # #??? | | ####### """"" ; # ##??? | | #?????" """"" ; ########## ##???# | | "" #???? " ; ?????????###% ##?###" | | "" #??? """;;;;;;;;;;;; ????? ??##%#### | | "" #? $ ??? ???# ## + | | #""""""";;;;;;;;;;;;;;;;"##;;;;;#### ## + | | # ! %;;%$= ; ; "" + | | [ # %![;;/! "" + gg + | | !" = ;;!=""" ; g #### ###" | | " %;;$[""" ;; ;#??# #??#"### | | " """ """ %;;%%!% ;; #???# #???##?? | | " """S"" % ! ;;!*!! ;; #???#####??????? | | " !!%%% ];;;;;;;;;; #??????????????? | | """"""""+;;;p##;;;;;;;;;;### ###????????????? | | k[%= u @ u #????????????? | | =!| #######??????? | | """ # ##????? | | """"" o # "#???? | | #####+##### """"" ;;#+###### # """ ""#???? | | ??????????# # ## # """ ""#???? | | ??????????# """"" # "" ## # """ ""#???? | | ??????????# """"" # """ ## #% ""#???? | | ??????????# """"" # S" ## =# T"#???? | | ??????????# # """ ## !+ ""#???? | | ??????????# """"" # """ ## #% "" ""#???? | | ??????????# """"" # ####### """ ""#???? | | ??????????# """"" # """ #?????# T" ""#???? | | ??????????# # """ #?????# """ "#???? | | ??????????# # """ #?????# "" ###???? | | ??????????# # ? #?????# #?????? | | ??????????# #####?###?????########?????? | | ??????????# #??????????????????????????? | | ??????######+##### ^ #??????????????????????????? | | ??????# #?# #??????????????????????????? | | ####### ### #??????????????????????????? | | "" # # ""######??????????????????????????? | | " # + ""#???????????????????????????????? | | # # G#???????????????????????????????? | | + # ""#???????????????????????????????? | +----------------------------------------------------+ Best States ------------- Heat Dissipation 168 Energy Generation 57 Energy Capacity 1075 Matter Stores 300 Matter Capacity 600 Sight Range 16 Robot Scan Range 16 Terrain Scan Range 20 Terrain Scan Density 210 ECM Strength 1 Jamming Range 14 Corruption Containment 8 Armor Coverage 2250 Resistance: KI 30 Resistance: TH 30 Core Shielding 20 Weapon Shielding 66 Evasion (%) 50 Targeting Accuracy 14 Recoil Reduction 6 Offensive Hacking 30 Defensive Hacking 24 Authchip Count 4 Item Schematics ----------------- Hcp. Storage Unit | -10/Materials | Hacked Huge Storage Unit | -10/Materials | Hacked Adv. Terrain Scan Processor | -8/Materials | Scanalyzed Arm. Wheel | -8/Materials | Scanalyzed Imp. Trap Scanner | -7/Zion | Archive System Restoration Module | -7/Zion | Archive Nuclear Pulse Thruster | -7/Zion | Archive Launcher Guidance Computer | -7/Zion | Archive Hpw. Shock Rifle | -7/Zion | Archive Adv. Drone Bay | -7/Zion | Archive Hvy. Plasma Cannon | -7/Zion | Archive Kinecellerator | -7/Zion | Archive Adv. ECM Suite | -7/Zion | Archive Plasma Flamer | -7/Zion | Archive Energy Filter | -7/Zion | Archive Imp. Kinecellerator | -7/Zion | Archive Component Analysis Suite | -7/Zion | Archive Lgt. Fission Core | -7/Zion | Archive Combat Drone Bay | -6/Data Miner | Free Lgt. Regenerative Plating | -6/Data Miner | Free Cld. Nuclear Pulse Thruster | -6/Data Miner | Free Exp. Heat Sink | -6/Data Miner | Free Tri-rail Accelerator | -6/Data Miner | Free Hvy. Siege Treads | -6/Data Miner | Free Imp. Cloaking Device | -6/Data Miner | Free Phase Gun | -6/Data Miner | Free Imp. Force Field | -6/Data Miner | Free Antigrav Array | -6/Data Miner | Free Imp. Hacking Suite | -5/Factory | Scanalyzed Cld. Plasma Cannon | -4/Factory | Scanalyzed Adv. Heavy Siege Treads | -4/Extension | Hacked Enh. Quantum Rifle | -3/Quarantine | Hacked Exp. Melee Analysis Suite | -3/Quarantine | Archive Exp. Cooling System | -3/Quarantine | Archive Centrium Greatsword | -3/Quarantine | Archive Hdn. Centrium Leg | -2/Testing | Archive Stealth Drone Bay | -2/Testing | Archive Exp. Gyrokinetic Inverter | -2/Testing | Archive Electron Diverter | -2/Testing | Archive System Purifier | -2/Testing | Archive Thunder Hammer | -2/Testing | Archive Exp. Signal Interpreter | -2/Testing | Archive Robot Schematics ------------------ B-48 Gladiator | -7/Zion | Archive W-25 Informer | -7/Zion | Archive S-27 Virus | -7/Zion | Archive X-82 Rainmaker | -7/Zion | Archive R-10 Processor | -6/Data Miner | Free L-41 Fighter | -6/Data Miner | Free X-72 Disruptor | -6/Data Miner | Free O-32 Director | -6/Data Miner | Free A-15 Conveyor | -6/Data Miner | Free E-15 Imp | -6/Data Miner | Free K-01 Serf | -2/Testing | Archive T-07 Excavator | -2/Testing | Archive Fabricated ------------ Hvy. Siege Treads | x2 | -5/Factory Alien Tech Used ----------------- Core Cannon Achievements -------------- Giant Slayer Help From High Places Max Potential Pyromaniac Challenges ------------ None Game ------ Seed CoordinationFusionCoupler Manual? 0 Play Time 05:59:42 Cumulative 138.1 hours Start 2022.07.31 @ 14:37:42 End 2022.08.02 @ 15:27:50 Sessions 5 Manual Loads 0 Difficulty Rogue Special Mode None Game No. 55 Rogue 55 Adventurer 0 Explorer 0 Win Type - Total 5 Types 3/0/1/1/0/0/0/0/0 Lore% 70 Gallery% 65 Achievement% 57 Wizard Run 0 Options --------- ASCII 0 Keyboard 1 Movement Numpad Keybinds 0 Fullscreen 2 Font 18/X11 Map View 76x50 Tactical HUD 1 Map Filters NONE Filters NONE Steam 1 RUN: 94bdbc93-711e-4304-83f3-a2aedaebecf7